bitfinex/quotes_SOLUSD_20260309
["timestamp","ask_amount","ask_price","bid_price","bid_amount"]
[1773043208306,12.02240977,83.178,83.151,1.26154112]
[1773043209113,12.02240977,83.178,83.153,1.26154112]
[1773043210415,4.44197266,83.18,83.155,1.26154112]
[1773043210620,16.46423117,83.18,83.155,1.26154112]
[1773043211113,0.33278276,83.21,83.16,4.44197266]
[1773043211305,4.44197266,83.19,83.161,1.26154112]
[1773043212402,4.44197266,83.18,83.14,4.44197266]
[1773043212602,48.04024647,83.264,83.15,4.44197266]
[1773043212603,16.46264822,83.19,83.15,4.44197266]
[1773043212918,17.74279882,83.19,83.15,4.44197266]
[1773043213116,1.2801506,83.186,83.121,42.10728936]
[1773043213308,1.2801506,83.18,83.13,4.44197266]
[1773043213506,1.2801506,83.189,83.15,4.44197266]
[1773043213819,4.44197266,83.24,83.121,42.10728936]
[1773043213820,12.01853859,83.205,83.17,4.44197266]
[1773043214111,12.01781865,83.21,83.17,4.44197266]
[1773043214297,4.44197266,83.2,83.171,1.26154112]
[1773043214501,1.2801506,83.198,83.173,1.26154112]
[1773043214695,4.44197266,83.19,83.167,1.26154112]
[1773043214899,1.2801506,83.179,83.151,1.26154112]
[1773043215713,1.2801506,83.179,83.152,1.26154112]
[1773043216114,4.44197266,83.17,83.152,1.26154112]
[1773043216621,13.30256037,83.178,83.152,1.26154112]
[1773043217218,4.44197266,83.17,83.152,1.26154112]
[1773043218231,1.2801506,83.177,83.152,1.26154112]
[1773043218418,42.07843419,83.178,83.152,1.26154112]
[1773043218627,42.07843419,83.178,83.148,12.02670604]
[1773043218628,12.02371075,83.169,83.136,12.02848344]
[1773043218924,12.02371075,83.169,83.137,1.26154112]
[1773043221431,4.44197266,83.16,83.101,30.08387384]
[1773043221598,4.44197266,83.15,83.12,4.44197266]
[1773043221929,1.2801506,83.149,83.11,4.44197266]
[1773043222124,4.44197266,83.16,83.12,4.44197266]
[1773043222725,1.2801506,83.159,83.12,4.44197266]
[1773043223020,1.2801506,83.139,83.11,4.44197266]
[1773043223228,1.2801506,83.139,83.101,42.11742337]
[1773043223229,4.44197266,83.14,83.101,12.03354953]
[1773043223405,12.02804941,83.139,83.112,1.26154112]
[1773043223604,4.44197266,83.15,83.112,1.26154112]
[1773043223816,4.44197266,83.15,83.121,1.26154112]
[1773043224121,4.44197266,83.15,83.111,42.11235575]
[1773043224122,4.44197266,83.15,83.112,1.26154112]
[1773043224500,1.2801506,83.154,83.121,1.26154112]
[1773043224908,12.02515662,83.159,83.123,1.26154112]
[1773043225523,1.2801506,83.158,83.123,1.26154112]
[1773043226220,1.2801506,83.149,83.123,1.26154112]
[1773043226428,4.44197266,83.14,83.123,1.26154112]
[1773043226810,4.44197266,83.16,83.123,1.26154112]
[1773043227021,12.02455272,83.164,83.131,1.26154112]
[1773043227311,30.05147455,83.191,83.141,1.26154112]
[1773043227516,1.2801506,83.199,83.161,1.26154112]
[1773043227909,1.2801506,83.199,83.17,4.44197266]
[1773043228110,1.2801506,83.222,83.191,1.26154112]
[1773043228317,1.2801506,83.209,83.171,1.26154112]
[1773043228912,13.29952583,83.199,83.173,1.26154112]
[1773043229313,1.2801506,83.198,83.173,1.26154112]
[1773043230410,1.2801506,83.203,83.173,1.26154112]
[1773043230611,1.2801506,83.199,83.173,1.26154112]
[1773043231542,1.2801506,83.199,83.159,30.06273352]
[1773043231543,1.2801506,83.218,83.181,1.26154112]
[1773043231833,54.1,83.282,83.174,12.02298795]
[1773043231834,1.2801506,83.228,83.191,1.26154112]
[1773043232038,12.01504283,83.229,83.174,42.08045783]
[1773043232039,1.2801506,83.219,83.181,1.26154112]
[1773043232431,1.2801506,83.219,83.191,1.26154112]
[1773043232636,1.2801506,83.227,83.191,1.26154112]
[1773043233732,1.2801506,83.227,83.193,1.26932979]
[1773043233938,1.32136038,83.242,83.201,1.26932979]
[1773043234123,1.32136038,83.242,83.211,1.26932979]
[1773043234616,12.01331074,83.241,83.211,1.26932979]
[1773043234822,13.33467112,83.241,83.211,1.26932979]
[1773043235215,1.32136038,83.24,83.211,1.26932979]
[1773043235816,12.01359939,83.239,83.211,1.26932979]
[1773043236136,13.33495977,83.239,83.211,1.26932979]
[1773043236338,1.32136038,83.238,83.213,1.26932979]
[1773043237620,1.32136038,83.246,83.213,1.26932979]
[1773043238229,1.32136038,83.246,83.214,12.01720864]
[1773043238436,1.32136038,83.246,83.215,1.26932979]
[1773043238832,1.32136038,83.239,83.201,1.26932979]
[1773043239036,1.32136038,83.239,83.211,1.26932979]
[1773043239444,1.32136038,83.239,83.201,1.26932979]
[1773043239926,12.01374372,83.238,83.202,12.01894185]
[1773043240123,1.32136038,83.237,83.203,1.26932979]
[1773043240841,1.32136038,83.237,83.211,1.26932979]
[1773043242144,1.32136038,83.237,83.161,106.10248674]
[1773043242145,1.32136038,83.229,83.192,12.02038657]
[1773043242351,1.2611467,83.219,83.192,12.02038657]
[1773043242926,1.2611467,83.219,83.182,1.23483577]
[1773043243634,1.2611467,83.209,83.175,1.23483577]
[1773043243828,1.2611467,83.209,83.177,1.23483577]
[1773043244027,1.2611467,83.207,83.178,13.25724554]
[1773043244233,1.2611467,83.207,83.179,1.23483577]
[1773043245138,1.2611467,83.199,83.173,12.02309052]
[1773043245342,1.2611467,83.199,83.163,1.23483577]
[1773043245343,1.2611467,83.199,83.167,12.02396358]
[1773043245536,1.2611467,83.199,83.171,1.23483577]
[1773043246139,1.2611467,83.197,83.162,1.23483577]
[1773043247440,1.2611467,83.197,83.171,1.23483577]
[1773043247755,1.2611467,83.215,83.181,1.23483577]
[1773043247943,1.2611467,83.212,83.181,1.23483577]
[1773043248828,11.89426713,83.22,83.143,3.69383402]
[1773043248829,1.2611467,83.209,83.161,30.06216856]
[1773043249129,1.2611467,83.199,83.164,1.23483577]
[1773043249342,1.2611467,83.189,83.164,1.23483577]
[1773043250757,42.06174663,83.211,83.154,42.09057892]
[1773043250758,1.2611467,83.209,83.171,1.23483577]
[1773043250938,11.89426713,83.21,83.173,1.23483577]
[1773043250939,1.2611467,83.207,83.173,1.23483577]
[1773043251545,1.2611467,83.207,83.151,60.13119876]
[1773043251546,1.2611467,83.199,83.168,12.0238499]
[1773043251751,30.03409261,83.239,83.168,1.23483577]
[1773043251950,1.2611467,83.229,83.2,11.89426713]
[1773043252157,1.2611467,83.229,83.197,1.23483577]
[1773043252355,1.2611467,83.219,83.181,1.23483577]
[1773043252758,1.2611467,83.219,83.191,1.23483577]
[1773043252964,1.2611467,83.219,83.193,1.23483577]
[1773043254062,1.2611467,83.217,83.187,12.02100751]
[1773043254259,1.2611467,83.217,83.188,1.23483577]
[1773043254462,1.2611467,83.221,83.191,1.23483577]
[1773043254857,1.2611467,83.219,83.191,1.23483577]
[1773043255458,1.2611467,83.217,83.191,1.23483577]
[1773043255654,1.2611467,83.217,83.192,12.02038657]
[1773043257163,1.2611467,83.217,83.193,1.23483577]
[1773043257769,1.2611467,83.217,83.195,1.23483577]
[1773043257967,1.2611467,83.215,83.188,1.23483577]
[1773043258664,1.2611467,83.215,83.187,12.02109835]
[1773043258842,12.01691982,83.216,83.181,1.23483577]
[1773043258843,1.2611467,83.209,83.181,1.23483577]
[1773043259242,1.2611467,83.209,83.17,11.89426713]
[1773043259243,1.2611467,83.209,83.171,1.23483577]
[1773043259653,1.2611467,83.216,83.172,1.23483577]
[1773043259871,1.2611467,83.216,83.181,1.23483577]
[1773043260268,13.15541383,83.2,83.181,1.23483577]
[1773043260475,1.2611467,83.199,83.172,1.23483577]
[1773043261274,1.2611467,83.199,83.171,12.02342162]
[1773043261766,1.2611467,83.199,83.172,1.23483577]
[1773043261959,13.28061411,83.199,83.172,1.23483577]
[1773043262264,1.2611467,83.198,83.172,1.23483577]
[1773043263167,1.22819785,83.219,83.191,1.28220764]
[1773043263355,11.89426713,83.2,83.171,12.02342162]
[1773043263557,11.89426713,83.2,83.114,4.82477569]
[1773043263558,1.22819785,83.179,83.14,11.89426713]
[1773043263761,1.22819785,83.179,83.143,1.28220764]
[1773043264164,1.22819785,83.199,83.161,1.28220764]
[1773043264664,1.22819785,83.192,83.161,1.28220764]
[1773043265769,12.02053106,83.191,83.162,12.02472283]
[1773043265975,1.22819785,83.189,83.161,1.28220764]
[1773043266179,1.22819785,83.189,83.161,13.3070581]
[1773043266383,1.22819785,83.189,83.162,1.28220764]
[1773043267287,12.01991502,83.196,83.162,1.28220764]
[1773043267288,1.22819785,83.196,83.162,1.28220764]
[1773043267784,1.22819785,83.196,83.17,4.44186481]
[1773043267991,4.44186481,83.21,83.18,4.44186481]
[1773043268288,60.06861796,83.239,83.163,42.08602382]
[1773043268289,1.22819785,83.228,83.191,1.28220764]
[1773043268465,1.22819785,83.244,83.211,1.28220764]
[1773043268786,1.22819785,83.252,83.221,1.28220764]
[1773043269277,60.04213121,83.275,83.2,4.44186481]
[1773043269278,1.22819785,83.261,83.231,1.28220764]
[1773043269579,1.22819785,83.259,83.195,1.28220764]
[1773043269781,12.01230059,83.248,83.221,1.28220764]
[1773043269986,1.22819785,83.247,83.222,12.01605344]
[1773043270285,1.22819785,83.239,83.217,12.01664477]
[1773043271787,1.22819785,83.239,83.21,11.87682699]
[1773043271788,1.22819785,83.239,83.212,13.29965074]
[1773043272293,1.22819785,83.239,83.213,1.28220764]
[1773043272471,1.22819785,83.259,83.221,1.28220764]
[1773043272785,1.22819785,83.259,83.22,11.87682699]
[1773043272786,1.22819785,83.249,83.213,1.28220764]
[1773043274279,1.22819785,83.249,83.212,12.0174431]
[1773043274280,1.22819785,83.247,83.214,13.29941628]
[1773043274481,1.22819785,83.247,83.215,1.28220764]
[1773043275375,1.22819785,83.239,83.2,11.87682699]
[1773043275575,1.22819785,83.229,83.2,1.28220764]
[1773043275977,42.04305207,83.248,83.188,12.02095265]
[1773043275978,1.22819785,83.219,83.188,12.02095265]
[1773043276281,1.22819785,83.229,83.191,1.28220764]
[1773043276482,1.22819785,83.227,83.193,1.28220764]
[1773043276781,1.22819785,83.227,83.192,12.02038657]
[1773043276782,1.22819785,83.219,83.192,12.02038657]
[1773043277584,1.22819785,83.219,83.192,13.30259421]
[1773043278600,1.22819785,83.217,83.192,13.30259421]
[1773043278801,1.22819785,83.248,83.211,1.28220764]
[1773043279904,1.22819785,83.248,83.213,1.28220764]
[1773043280887,11.87682699,83.24,83.215,1.28220764]
[1773043281092,1.22819785,83.239,83.201,1.28220764]
[1773043282791,1.22819785,83.237,83.205,1.28220764]
[1773043283401,1.22819785,83.237,83.21,11.87682699]
[1773043283702,1.22819785,83.237,83.205,1.28220764]
[1773043284490,1.22819785,83.235,83.206,12.01836406]
[1773043284802,1.22819785,83.235,83.206,13.3005717]
[1773043285190,1.22819785,83.235,83.211,1.28220764]
[1773043285785,1.22819785,83.235,83.206,12.01836406]
[1773043286909,1.22819785,83.235,83.206,1.28220764]
[1773043287812,1.22819785,83.235,83.21,13.15903463]
[1773043288493,1.22819785,83.242,83.211,1.28220764]
[1773043288689,1.22819785,83.247,83.211,1.28220764]
[1773043290202,3.69383402,83.268,83.175,1.20228434]
[1773043290203,1.22819785,83.289,83.241,1.28220764]
[1773043290402,1.22819785,83.288,83.251,1.28220764]
[1773043290604,1.22819785,83.289,83.25,11.87682699]
[1773043290804,1.22819785,83.289,83.214,3.69383402]
[1773043290805,1.22819785,83.271,83.241,1.28220764]
[1773043291221,3.69383402,83.308,83.214,3.69383402]
[1773043291222,12.00395576,83.306,83.231,1.28220764]
[1773043291397,12.00638739,83.289,83.257,1.28220764]
[1773043291602,11.87682699,83.28,83.242,1.28220764]
[1773043291809,12.00638739,83.289,83.242,1.28220764]
[1773043291810,11.87682699,83.27,83.242,1.28220764]
[1773043292317,11.87682699,83.27,83.243,12.01302211]
[1773043293207,1.28387234,83.269,83.243,12.01302211]
[1773043293395,11.87682699,83.26,83.238,12.01369028]
[1773043293794,1.28387234,83.278,83.24,11.87682699]
[1773043294009,1.28387234,83.278,83.25,11.87682699]
[1773043294212,11.87682699,83.27,83.249,13.2173619]
[1773043295413,1.28387234,83.278,83.249,13.2173619]
[1773043296213,11.87682699,83.27,83.249,13.2173619]
[1773043296399,0.1,83.29,83.261,1.20531241]
[1773043296832,0.1,83.29,83.271,1.20531241]
[1773043299313,0.1,83.29,83.241,102.11314135]
[1773043299314,1.38387234,83.29,83.261,12.01042504]
[1773043299515,0.1,83.29,83.262,1.20531241]
[1773043299712,1.28387234,83.289,83.255,12.01122471]
[1773043300017,11.87682699,83.28,83.255,12.01122471]
[1773043300315,13.16069933,83.28,83.255,12.01122471]
[1773043300514,11.87682699,83.27,83.249,12.0120426]
[1773043300718,1.28387234,83.269,83.244,12.0127939]
[1773043301016,1.28387234,83.269,83.237,1.20531241]
[1773043301219,11.87682699,83.26,83.238,12.01374372]
[1773043301419,12.01071355,83.259,83.23,13.22010151]
[1773043301722,11.87682699,83.26,83.231,1.20531241]
[1773043302220,3.69383402,83.288,83.23,12.0147891]
[1773043302221,1.28387234,83.296,83.25,11.87682699]
[1773043302398,7.40229374,83.326,83.281,1.20531241]
[1773043302604,7.40229374,83.326,83.244,3.69383402]
[1773043302605,7.40229374,83.326,83.3,11.87682699]
[1773043303002,1.28387234,83.324,83.29,11.87682699]
[1773043303502,1.28387234,83.322,83.291,12.00609909]
[1773043303706,7.40229374,83.326,83.291,12.00609909]
[1773043303908,7.40229374,83.326,83.3,11.87682699]
[1773043304613,7.40229374,83.326,83.31,11.87682699]
[1773043304917,0.1,83.34,83.321,1.20531241]
[1773043305314,1.28387234,83.338,83.311,12.00321686]
[1773043306018,1.28387234,83.336,83.31,11.87682699]
[1773043306225,1.28387234,83.336,83.3,13.0821394]
[1773043306419,1.28387234,83.336,83.31,11.87682699]
[1773043307726,1.28387234,83.336,83.31,11.8548083]
[1773043308111,0.1,83.34,83.311,1.20888577]
[1773043308329,0.1,83.34,83.32,11.8548083]
[1773043308619,1.32640856,83.339,83.311,1.20888577]
[1773043309209,1.32640856,83.339,83.301,42.01630231]
[1773043309210,1.32640856,83.338,83.303,1.20888577]
[1773043309622,1.32640856,83.338,83.31,11.8548083]
[1773043309815,1.32640856,83.336,83.31,23.85809757]
[1773043310610,1.32640856,83.329,83.3,11.8548083]
[1773043310805,1.32640856,83.329,83.301,13.21354357]
[1773043311419,1.32640856,83.329,83.301,12.0046578]
[1773043311617,1.32640856,83.329,83.31,11.8548083]
[1773043312022,1.32640856,83.329,83.28,11.8548083]
[1773043312023,1.32640856,83.319,83.266,1.20888577]
[1773043312214,1.32640856,83.319,83.29,11.8548083]
[1773043312804,1.32640856,83.319,83.265,42.03446825]
[1773043312805,1.32640856,83.319,83.28,13.06369407]
[1773043313009,1.32640856,83.299,83.27,11.8548083]
[1773043313230,1.32640856,83.299,83.256,1.20888577]
[1773043313410,3.69383402,83.318,83.244,30.03190522]
[1773043313411,1.32640856,83.279,83.254,12.01134019]
[1773043314408,1.32640856,83.277,83.248,1.20888577]
[1773043314721,1.32640856,83.277,83.255,12.01117362]
[1773043314916,1.32640856,83.277,83.248,1.20888577]
[1773043315119,1.32640856,83.277,83.249,12.0120937]
[1773043315320,1.32640856,83.277,83.248,1.20888577]
[1773043315530,1.32640856,83.277,83.253,12.0114815]
[1773043316034,1.32640856,83.269,83.258,2.9401595]
[1773043316216,23.86405934,83.27,83.242,12.01312802]
[1773043316532,23.86405934,83.27,83.243,1.34214702]
[1773043316731,12.00925104,83.27,83.243,1.34214702]
[1773043316911,23.86405934,83.27,83.243,1.34214702]
[1773043317329,23.86405934,83.27,83.245,1.34214702]
[1773043317532,11.8548083,83.26,83.225,1.34214702]
[1773043318822,11.8548083,83.26,83.227,1.34214702]
[1773043319335,11.8548083,83.25,83.227,1.34214702]
[1773043319539,11.8548083,83.28,83.189,60.10391396]
[1773043319540,11.8548083,83.24,83.209,1.34214702]
[1773043319930,3.69383402,83.275,83.209,1.34214702]
[1773043320127,11.8548083,83.25,83.211,1.34214702]
[1773043320329,11.8548083,83.24,83.211,1.34214702]
[1773043320827,12.01359939,83.239,83.211,1.34214702]
[1773043321031,12.01359939,83.239,83.213,1.34214702]
[1773043321630,12.01359939,83.239,83.183,1.34214702]
[1773043321631,11.8548083,83.22,83.183,1.34214702]
[1773043321918,11.8548083,83.23,83.191,1.34214702]
[1773043322124,11.8548083,83.22,83.191,1.34214702]
[1773043322731,12.01648661,83.219,83.191,1.34214702]
[1773043324741,12.01648661,83.219,83.193,1.34214702]
[1773043325333,0.03645921,83.218,83.184,12.02151202]
[1773043325535,11.8548083,83.21,83.179,1.34214702]
[1773043326538,11.8548083,83.22,83.181,1.34214702]
[1773043327142,11.8548083,83.2,83.181,1.34214702]
[1773043327548,11.8548083,83.19,83.17,0.2]
[1773043327753,11.8548083,83.2,83.17,1.54214702]
[1773043328429,11.8548083,83.2,83.172,1.34214702]
[1773043329847,11.8548083,83.2,83.174,1.34214702]
[1773043330356,11.8548083,83.2,83.176,1.34214702]
[1773043330534,23.87407821,83.2,83.176,1.34214702]
[1773043331950,23.87407821,83.2,83.17,0.2]
[1773043331951,11.8548083,83.19,83.17,0.2]
[1773043332256,11.8548083,83.19,83.15,12.0548083]
[1773043332257,0.05694213,83.179,83.15,1e-08]
[1773043332458,42.06734683,83.2,83.134,1.34214702]
[1773043332459,11.8548083,83.16,83.134,1.34214702]
[1773043332641,11.8548083,83.15,83.134,1.34214702]
[1773043333448,0.05694213,83.168,83.134,1.34214702]
[1773043333635,11.8548083,83.15,83.134,1.34214702]
[1773043333831,11.8548083,83.17,83.136,1.34214702]
[1773043334058,11.8548083,83.16,83.138,1.34214702]
[1773043334468,11.8548083,83.16,83.13,1.34214702]
[1773043334469,12.02515662,83.159,83.13,1.34214702]
[1773043334664,11.8548083,83.15,83.13,1.34214702]
[1773043334953,11.8548083,83.14,83.103,12.03325993]
[1773043335142,11.8548083,83.14,83.103,42.11640975]
[1773043336458,12.02616894,83.152,83.11,11.8548083]
[1773043336659,11.8548083,83.15,83.11,11.8548083]
[1773043336859,11.8548083,83.14,83.111,1.30524846]
[1773043337258,11.8548083,83.13,83.111,1.30524846]
[1773043338165,11.8548083,83.12,83.102,1.30524846]
[1773043338663,11.8548083,83.11,83.1,0.2]
[1773043338849,11.8548083,83.12,83.1,0.2]
[1773043339049,11.8548083,83.12,83.101,12.03354953]
[1773043339440,11.8548083,83.11,83.1,0.2]
[1773043339642,11.8548083,83.12,83.1,12.23361069]
[1773043340143,11.8548083,83.13,83.101,1.30524846]
[1773043340339,11.8548083,83.14,83.101,1.30524846]
[1773043340568,11.8548083,83.13,83.101,1.30524846]
[1773043340769,11.8548083,83.12,83.101,1.30524846]
[1773043341278,11.8548083,83.13,83.103,1.30524846]
[1773043341447,12.02738583,83.144,83.103,1.30524846]
[1773043341647,12.02672398,83.149,83.111,1.30524846]
[1773043341842,11.8548083,83.14,83.111,1.30524846]
[1773043342661,12.02672398,83.149,83.1,12.0548083]
[1773043342662,11.8548083,83.12,83.1,0.2]
[1773043342870,12.03094358,83.119,83.1,0.2]
[1773043343057,0.43107377,83.118,83.089,1.30524846]
[1773043343367,0.43107377,83.118,83.076,1.30524846]
[1773043343568,11.8548083,83.11,83.076,1.30524846]
[1773043345679,12.03023333,83.124,83.081,1.30524846]
[1773043345847,11.8548083,83.13,83.091,1.30524846]
[1773043346048,11.8548083,83.12,83.091,1.30524846]
[1773043346246,23.88278313,83.14,83.091,1.30524846]
[1773043346451,23.88278313,83.14,83.1,11.8548083]
[1773043346651,12.02717782,83.146,83.111,1.30524846]
[1773043346844,11.8548083,83.14,83.111,1.30524846]
[1773043347887,11.8548083,83.15,83.113,1.30524846]
[1773043348375,12.02660284,83.149,83.113,1.30524846]
[1773043349669,11.8548083,83.14,83.113,1.30524846]
[1773043350590,11.8548083,83.14,83.115,1.30524846]
[1773043350890,12.02804941,83.139,83.101,1.30524846]
[1773043351064,11.8548083,83.13,83.101,1.30524846]
[1773043352677,11.8548083,83.13,83.103,1.30524846]
[1773043353081,12.02949632,83.129,83.103,1.30524846]
[1773043353874,12.02949632,83.129,83.076,60.18548908]
[1773043353875,11.8548083,83.12,83.079,13.38837048]
[1773043354078,11.8548083,83.12,83.081,1.35163437]
[1773043354479,11.8548083,83.14,83.101,1.35163437]
[1773043354887,11.8548083,83.14,83.103,1.35163437]
[1773043355778,12.02804941,83.139,83.103,1.35163437]
[1773043356180,11.8548083,83.13,83.105,1.35163437]
[1773043356390,3.69383402,83.159,83.105,1.35163437]
[1773043356391,12.02743779,83.144,83.105,1.35163437]
[1773043356578,23.88136725,83.15,83.111,1.35163437]
[1773043356790,4.82477569,83.184,83.103,42.11631142]
[1773043356791,11.8548083,83.18,83.131,1.35163437]
[1773043356972,9.10641761,83.179,83.141,1.35163437]
[1773043357877,21.12882606,83.179,83.143,1.35163437]
[1773043359474,11.8548083,83.17,83.143,1.35163437]
[1773043359679,11.8548083,83.16,83.123,1.35163437]
[1773043359879,0.46854409,83.158,83.127,1.35163437]
[1773043360083,11.8548083,83.15,83.127,1.35163437]
[1773043360794,11.8548083,83.15,83.117,1.35163437]
[1773043361001,11.8548083,83.14,83.109,1.35163437]
[1773043361510,0.47249214,83.139,83.109,1.35163437]
[1773043361795,0.47249214,83.139,83.109,13.38388528]
[1773043362295,11.8548083,83.13,83.098,1.35163437]
[1773043362991,12.02819408,83.138,83.098,1.35163437]
[1773043363382,11.8548083,83.12,83.092,12.03471573]
[1773043363888,11.8548083,83.12,83.09,1.35163437]
[1773043364087,3.69383402,83.149,83.076,30.0926402]
[1773043364088,12.03239119,83.109,83.084,12.03587486]
[1773043364482,12.03239119,83.109,83.085,1.35163437]
[1773043365296,12.51294782,83.119,83.085,1.35163437]
[1773043365800,0.48200424,83.099,83.07,0.2]
[1773043365974,0.48200424,83.099,83.07,1.49426805]
[1773043366177,0.48200424,83.099,83.071,12.03789529]
[1773043366596,0.48200424,83.099,83.071,13.33216334]
[1773043366795,0.48384706,83.107,83.072,1.29426805]
[1773043367005,0.48384706,83.089,83.06,0.2]
[1773043367502,12.03543231,83.088,83.061,12.03934457]
[1773043368079,12.03543231,83.088,83.06,0.2]
[1773043368479,11.8548083,83.1,83.062,1.29426805]
[1773043368695,11.8548083,83.09,83.062,1.29426805]
[1773043369086,12.03253597,83.108,83.062,1.29426805]
[1773043369286,12.03253597,83.108,83.06,12.0548083]
[1773043369287,11.8548083,83.1,83.064,1.29426805]
[1773043369490,12.34400174,83.09,83.06,0.2]
[1773043369691,12.41852455,83.09,83.06,12.23944815]
[1773043369982,11.92933111,83.08,83.06,0.2]
[1773043370394,11.92933111,83.1,83.062,1.29426805]
[1773043370597,12.03253597,83.108,83.071,1.29426805]
[1773043371083,11.92933111,83.1,83.071,1.29426805]
[1773043371484,11.92933111,83.1,83.072,13.33201843]
[1773043371699,11.92933111,83.1,83.073,1.29426805]
[1773043372083,12.03383915,83.099,83.073,1.29426805]
[1773043372486,12.42375476,83.1,83.064,1.29426805]
[1773043372702,11.92933111,83.1,83.064,1.29426805]
[1773043373200,11.92933111,83.12,83.071,1.29426805]
[1773043373406,11.92933111,83.12,83.081,1.29426805]
[1773043374704,3.69383402,83.139,83.06,0.2]
[1773043374705,11.92933111,83.15,83.101,1.29426805]
[1773043374890,11.92933111,83.14,83.101,1.29426805]
[1773043376297,11.92933111,83.12,83.083,1.29426805]
[1773043376808,23.95869322,83.13,83.092,1.29426805]
[1773043377001,11.92933111,83.12,83.092,1.29426805]
[1773043377401,11.92933111,83.1,83.052,1.42044656]
[1773043377596,11.92933111,83.09,83.052,1.42044656]
[1773043378406,11.92933111,83.1,83.052,1.42044656]
[1773043378612,12.03383915,83.099,83.054,1.42044656]
[1773043378812,42.11843703,83.099,83.054,1.42044656]
[1773043379614,12.03383915,83.099,83.061,1.42044656]
[1773043380703,12.03383915,83.099,83.063,1.42044656]
[1773043381310,12.03108833,83.118,83.071,1.42044656]
[1773043381512,11.92933111,83.11,83.071,1.42044656]
[1773043381907,13.48867277,83.147,83.062,42.13719871]
[1773043381908,11.92933111,83.13,83.081,1.42044656]
[1773043382111,11.92933111,83.14,83.091,1.42044656]
[1773043382296,11.92933111,83.13,83.091,1.42044656]
[1773043382702,11.92933111,83.12,83.091,1.42044656]
[1773043382902,42.10323713,83.129,83.05,1e-08]
[1773043382903,11.92933111,83.1,83.062,1.42044656]
[1773043383219,11.92933111,83.09,83.062,1.42044656]
[1773043384817,13.48867277,83.132,83.081,1.42044656]
[1773043385022,11.92933111,83.12,83.081,1.42044656]
[1773043385201,30.07430024,83.128,83.081,1.42044656]
[1773043385518,11.92933111,83.13,83.081,1.42044656]
[1773043385821,11.92933111,83.12,83.081,1.42044656]
[1773043386216,11.92933111,83.13,83.091,1.42044656]
[1773043386616,11.92933111,83.12,83.092,12.03485293]
[1773043386801,11.92933111,83.12,83.093,1.42044656]
[1773043386998,11.92933111,83.13,83.093,1.42044656]
[1773043387523,12.02819408,83.138,83.092,12.03485293]
[1773043387524,12.02819408,83.138,83.101,1.42044656]
[1773043389317,11.92933111,83.13,83.101,1.42044656]
[1773043389521,42.09867929,83.138,83.079,1.42044656]
[1773043389522,11.92933111,83.11,83.079,1.42044656]
[1773043390804,11.92933111,83.12,83.08,11.92933111]
[1773043391013,11.92933111,83.12,83.081,1.42044656]
[1773043391722,0.02586127,83.132,83.083,1.42044656]
[1773043391723,12.03094358,83.119,83.083,1.42044656]
[1773043391928,11.92933111,83.11,83.083,1.42044656]
[1773043392118,0.02625085,83.109,83.064,1.42044656]
[1773043392311,11.92933111,83.1,83.064,1.42044656]
[1773043392513,11.92933111,83.11,83.064,1.42044656]
[1773043392822,12.03094358,83.119,83.071,1.42044656]
[1773043394030,12.03094358,83.119,83.073,1.42044656]
[1773043394425,12.03094358,83.119,83.081,1.42044656]
[1773043394627,0.02368933,83.157,83.1,11.92933111]
[1773043394942,12.02933111,83.22,83.072,42.13212634]
[1773043394943,12.02515662,83.159,83.111,1.42044656]
[1773043395223,11.92933111,83.16,83.111,1.42044656]
[1773043395429,12.02515662,83.159,83.111,1.42044656]
[1773043396228,12.02515662,83.159,83.113,1.42044656]
[1773043398327,11.92933111,83.15,83.115,1.42044656]
[1773043398922,11.92933111,83.14,83.115,1.42044656]
[1773043399120,11.92933111,83.15,83.115,1.42044656]
[1773043400234,11.92933111,83.14,83.115,1.42044656]
[1773043400437,11.92933111,83.13,83.101,1.42044656]
[1773043400634,11.92933111,83.13,83.091,1.42044656]
[1773043401927,42.09817293,83.139,83.09,54.05231631]
[1773043401928,12.02804941,83.139,83.101,1.42044656]
[1773043402845,12.02804941,83.139,83.103,1.42044656]
[1773043403743,12.02743278,83.144,83.111,1.42044656]
[1773043404424,11.92933111,83.14,83.111,1.42044656]
[1773043404734,11.92933111,83.13,83.092,1.42044656]
[1773043404928,12.02949632,83.129,83.094,1.42044656]
[1773043405318,12.02890109,83.134,83.094,1.42044656]
[1773043405733,11.92933111,83.16,83.111,1.42044656]
[1773043405933,11.92933111,83.15,83.111,1.42044656]
[1773043406737,11.92933111,83.13,83.102,1.42044656]
[1773043407125,11.92933111,83.14,83.104,1.42044656]
[1773043408521,11.92933111,83.13,83.104,1.42044656]
[1773043408725,11.92933111,83.13,83.075,3.69383402]
[1773043408726,11.92933111,83.12,83.086,1.42044656]
[1773043409030,11.92933111,83.12,83.082,30.09039605]
[1773043409031,12.03094358,83.119,83.088,1.42044656]
[1773043412542,11.92933111,83.11,83.088,1.42044656]
[1773043412841,42.10830254,83.119,83.088,1.42044656]
[1773043413948,42.10830254,83.119,83.089,12.03528746]
[1773043414129,12.03094358,83.119,83.09,1.42044656]
[1773043414453,11.92933111,83.12,83.09,1.42044656]
[1773043414746,23.96019691,83.12,83.09,1.42044656]
[1773043416546,54.03719402,83.12,83.09,1.42044656]